fUST/lending_fUST_20240728
["ID","MTS","AMOUNT","RATE_DAILY","PERIOD"]
[333447637,1722132648042,-500.0,0.00013972,2]
[333447638,1722132648052,-505.57560286,0.00013972,2]
[333447639,1722132648061,-500.0,0.00013972,2]
[333447640,1722132648072,-500.0,0.00013972,2]
[333447641,1722132648083,-500.0,0.00013972,2]
[333447642,1722132648093,-500.0,0.00013972,2]
[333447643,1722132648104,-500.0,0.00013972,2]
[333447644,1722132648116,-500.0,0.00013972,2]
[333447645,1722132648128,-500.0,0.00013972,2]
[333447646,1722132648138,-500.0,0.00013972,2]
[333447647,1722132648150,-512.35410669,0.00013972,2]
[333447648,1722132648162,-500.0,0.00013972,2]
[333447649,1722132648172,-500.0,0.00013972,2]
[333447650,1722132648182,-1285.03,0.00013972,2]
[333447651,1722132648192,-500.0,0.00013972,2]
[333447652,1722132648201,-500.0,0.00013972,2]
[333447653,1722132648211,-500.0,0.00013972,2]
[333447654,1722132648220,-500.0,0.00013972,2]
[333447655,1722132648230,-500.0,0.00013972,2]
[333447656,1722132648240,-500.0,0.00013972,2]
[333447657,1722132648250,-500.0,0.00013972,2]
[333447658,1722132648259,-510.14653265,0.00013972,2]
[333447659,1722132648269,-500.0,0.00013972,2]
[333447660,1722132648279,-508.17704361,0.00013972,2]
[333447661,1722132648289,-500.0,0.00013972,2]
[333447662,1722132648299,-500.0,0.00013972,2]
[333447663,1722132648308,-500.0,0.00013972,2]
[333447664,1722132648319,-355.90835341,0.00013972,2]
[333447665,1722132648329,-508.84194861,0.00013972,2]
[333447666,1722132648339,-500.0,0.00013972,2]
[333447667,1722132648349,-500.0,0.00013972,2]
[333447668,1722132648359,-823.36,0.00013972,2]
[333447669,1722132648370,-507.97269331,0.00013972,2]
[333447670,1722132648380,-500.0,0.00013972,2]
[333447671,1722132648391,-500.0,0.00013972,2]
[333447672,1722132648402,-500.0,0.00013972,2]
[333447673,1722132648413,-500.0,0.00013972,2]
[333447674,1722132648423,-629.26,0.00013972,2]
[333447675,1722132648434,-500.0,0.00013972,2]
[333447676,1722132648444,-500.0,0.00013972,2]
[333447677,1722132648454,-500.0,0.00013972,2]
[333447678,1722132648464,-500.0,0.00013972,2]
[333447679,1722132648473,-500.0,0.00013972,2]
[333447680,1722132648483,-503.46259994,0.00013972,2]
[333447681,1722132648493,-500.0,0.00013972,2]
[333447682,1722132648503,-506.77735862,0.00013972,2]
[333447683,1722132648512,-500.0,0.00013972,2]
[333447684,1722132648522,-500.0,0.00013972,2]
[333447685,1722132648532,-506.27259331,0.00013972,2]
[333447686,1722132648543,-510.24769476,0.00013972,2]
[333447687,1722132648554,-500.0,0.00013972,2]
[333447688,1722132648565,-510.5092505,0.00013972,2]
[333447689,1722132648576,-1769.33,0.00013972,2]
[333447690,1722132648586,-504.77000058,0.00013972,2]
[333447691,1722132648596,-326.09279388,0.00013972,2]
[333447692,1722132648608,-500.0,0.00013972,2]
[333447693,1722132648619,-504.28861058,0.00013972,2]
[333447694,1722132648632,-500.0,0.00013972,2]
[333447695,1722132648642,-507.63716845,0.00013972,2]
[333447696,1722132648652,-500.0,0.00013972,2]
[333447697,1722132648662,-500.0,0.00013972,2]
[333447698,1722132648672,-150.112233,0.00014,2]
[333447699,1722132648682,-636.16713332,0.00014095,2]
[333447700,1722132648692,-150.112233,0.000141,2]
[333447701,1722132648703,-150.112233,0.000141,2]
[333447702,1722132648713,-150.112233,0.000142,2]
[333447703,1722132648723,-503.6943138,0.00014246,2]
[333447704,1722132648734,-500.0,0.00014246,2]
[333447705,1722132648744,-465.59271258,0.00014246,2]
[333447706,1722132648754,-500.0,0.00014246,2]
[333447707,1722132648764,-500.0,0.00014246,2]
[333447708,1722132648774,-500.0,0.00014246,2]
[333447709,1722132648784,-486.07317439,0.00014246,2]
[333447710,1722132648795,-507.75626245,0.00014246,2]
[333447711,1722132648808,-500.0,0.00014246,2]
[333447712,1722132648818,-500.0,0.00014246,2]
[333447713,1722132648830,-500.0,0.00014246,2]
[333447714,1722132648841,-500.0,0.00014246,2]
[333447715,1722132648854,-500.0,0.00014246,2]
[333447716,1722132648865,-500.0,0.00014246,2]
[333447717,1722132648877,-500.0,0.00014246,2]
[333447718,1722132648886,-500.0,0.00014246,2]
[333447719,1722132648896,-500.0,0.00014246,2]
[333447720,1722132648906,-500.0,0.00014246,2]
[333447721,1722132648916,-500.0,0.00014246,2]
[333447722,1722132648926,-500.0,0.00014246,2]
[333447723,1722132648936,-500.0,0.00014246,2]
[333447724,1722132648945,-507.07911338,0.00014246,2]
[333447725,1722132648955,-500.0,0.00014246,2]
[333447726,1722132648964,-500.0,0.00014246,2]
[333447727,1722132648974,-500.0,0.00014246,2]
[333447728,1722132648984,-500.0,0.00014246,2]
[333447729,1722132648995,-500.0,0.00014246,2]
[333447730,1722132649004,-500.0,0.00014246,2]
[333447731,1722132649015,-505.64115943,0.00014246,2]
[333447732,1722132649024,-503.85566045,0.00014246,2]
[333447733,1722132649034,-500.0,0.00014246,2]
[333447734,1722132649043,-500.0,0.00014246,2]
[333447735,1722132649053,-500.0,0.00014246,2]
[333447736,1722132649063,-500.0,0.00014246,2]
[333447737,1722132649073,-503.65898258,0.00014246,2]
[333447738,1722132649084,-414.91266614,0.00014246,2]
[333447739,1722132649346,-85.08733386,0.00014246,2]
[333447740,1722132649357,-256.5954555,0.00014246,2]
[333447741,1722132649370,-251.53537037,0.00014246,2]
[333447742,1722132649381,-500.0,0.00014246,2]
[333447743,1722132649391,-500.0,0.00014246,2]
[333447744,1722132649401,-500.0,0.00014246,2]
[333447745,1722132649411,-508.06723166,0.00014246,2]
[333447746,1722132649421,-597.40057287,0.00014246,2]
[333447747,1722132649433,-500.0,0.00014246,2]
[333447748,1722132649443,-500.0,0.00014246,2]
[333447749,1722132649453,-500.0,0.00014246,2]
[333447750,1722132649463,-500.0,0.00014246,2]
[333447751,1722132649473,-508.57993137,0.00014246,2]
[333447752,1722132649484,-500.0,0.00014246,2]
[333447753,1722132649494,-500.0,0.00014246,2]
[333447754,1722132649503,-500.0,0.00014246,2]
[333447755,1722132649514,-504.46961592,0.00014246,2]
[333447756,1722132649523,-500.0,0.00014246,2]
[333447757,1722132649533,-500.0,0.00014246,2]
[333447758,1722132649543,-500.0,0.00014246,2]
[333447759,1722132649553,-511.97306337,0.00014246,2]
[333447760,1722132649563,-500.0,0.00014246,2]
[333447761,1722132649573,-500.0,0.00014246,2]
[333447762,1722132649584,-483.75854713,0.00014246,2]
[333447763,1722132649594,-500.0,0.00014246,2]
[333447764,1722132649605,-500.0,0.00014246,2]
[333447765,1722132649615,-794.78,0.00014246,2]
[333447766,1722132649625,-767.42,0.00014246,2]
[333447767,1722132649636,-500.0,0.00014246,2]
[333447768,1722132649645,-500.0,0.00014246,2]
[333447769,1722132649654,-500.0,0.00014246,2]
[333447770,1722132649664,-331.95171431,0.00014246,2]
[333447771,1722132649674,-412.47734143,0.00014246,2]
[333447772,1722132649690,-87.52265857,0.00014246,2]
[333447773,1722132649700,-500.0,0.00014246,2]
[333447774,1722132649714,-2641.6,0.00014246,2]
[333447775,1722132649724,-500.0,0.00014246,2]
[333447776,1722132649733,-500.0,0.00014246,2]
[333447777,1722132649742,-1199.81,0.00014246,2]
[333447778,1722132649862,-500.0,0.00014246,2]
[333447779,1722132649873,-500.0,0.00014246,2]
[333447780,1722132649886,-514.4592741,0.00014246,2]
[333447781,1722132649897,-500.0,0.00014246,2]
[333447782,1722132649907,-500.0,0.00014246,2]
[333447783,1722132649917,-500.0,0.00014246,2]
[333447784,1722132649927,-500.0,0.00014246,2]
[333447785,1722132649938,-504.13733684,0.00014246,2]
[333447786,1722132649948,-500.0,0.00014246,2]
[333447787,1722132649957,-500.0,0.00014246,2]
[333447788,1722132649968,-540.83,0.00014246,2]
[333447789,1722132649978,-500.0,0.00014246,2]
[333447790,1722132649989,-509.7259121,0.00014246,2]
[333447791,1722132649999,-500.0,0.00014246,2]
[333447792,1722132650010,-500.0,0.00014246,2]
[333447793,1722132650021,-500.0,0.00014246,2]
[333447794,1722132650033,-500.0,0.00014246,2]
[333447795,1722132650044,-500.0,0.00014246,2]
[333447796,1722132650054,-500.0,0.00014246,2]
[333447797,1722132650065,-500.0,0.00014246,2]
[333447798,1722132650075,-500.0,0.00014246,2]
[333447799,1722132650085,-500.0,0.00014246,2]
[333447800,1722132650095,-500.0,0.00014246,2]
[333447801,1722132650106,-500.0,0.00014246,2]
[333447802,1722132650116,-500.0,0.00014246,2]
[333447803,1722132650126,-500.0,0.00014246,2]
[333447804,1722132650136,-500.0,0.00014246,2]
[333447805,1722132650146,-501.48670535,0.00014246,2]
[333447806,1722132650156,-2442.88,0.00014246,2]
[333447807,1722132650166,-512.51752409,0.00014246,2]
[333447808,1722132650176,-685.43,0.00014246,2]
[333447809,1722132650188,-500.0,0.00014246,2]
[333447810,1722132650198,-500.0,0.00014246,2]
[333447811,1722132650207,-331.5013632,0.00014246,2]
[333447812,1722132650217,-500.0,0.00014246,2]
[333447813,1722132650226,-500.0,0.00014246,2]
[333447814,1722132650236,-500.0,0.00014246,2]
[333447815,1722132650248,-500.0,0.00014246,2]
[333447816,1722132650258,-500.0,0.00014246,2]
[333447817,1722132650268,-500.0,0.00014246,2]
[333447818,1722132650277,-500.0,0.00014246,2]
[333447819,1722132650290,-500.0,0.00014246,2]
[333447820,1722132650300,-500.0,0.00014246,2]
[333447821,1722132650310,-1285.03,0.00014246,2]
[333447822,1722132650321,-500.0,0.00014246,2]
[333447823,1722132650331,-500.0,0.00014246,2]
[333447824,1722132650340,-500.0,0.00014246,2]
[333447825,1722132650350,-500.0,0.00014246,2]
[333447826,1722132650359,-500.0,0.00014246,2]
[333447827,1722132650368,-500.0,0.00014246,2]
[333447828,1722132650378,-500.0,0.00014246,2]
[333447829,1722132650387,-500.0,0.00014246,2]
[333447830,1722132650397,-500.0,0.00014246,2]
[333447831,1722132650406,-500.0,0.00014246,2]
[333447832,1722132650415,-500.0,0.00014246,2]
[333447833,1722132650425,-500.0,0.00014246,2]
[333447834,1722132650435,-466.7669556,0.00014246,2]
[333447835,1722132650445,-823.36,0.00014246,2]
[333447836,1722132650454,-500.0,0.00014246,2]
[333447837,1722132650463,-500.0,0.00014246,2]
[333447838,1722132650472,-500.0,0.00014246,2]
[333447839,1722132650482,-500.0,0.00014246,2]
[333447840,1722132650492,-629.26,0.00014246,2]
[333447841,1722132650501,-500.0,0.00014246,2]
[333447842,1722132650510,-500.0,0.00014246,2]
[333447843,1722132650520,-500.0,0.00014246,2]
[333447844,1722132650531,-500.0,0.00014246,2]
[333447845,1722132650541,-500.0,0.00014246,2]
[333447846,1722132650551,-500.0,0.00014246,2]
[333447847,1722132650560,-500.0,0.00014246,2]
[333447848,1722132650570,-500.0,0.00014246,2]
[333447849,1722132650579,-500.0,0.00014246,2]
[333447850,1722132650589,-1769.33,0.00014246,2]
[333447851,1722132650599,-500.0,0.00014246,2]
[333447852,1722132650608,-500.0,0.00014246,2]
[333447853,1722132650618,-500.0,0.00014246,2]
[333447854,1722132650628,-500.0,0.00014246,2]
[333447855,1722132650637,-750.0,0.00014247,2]
[333447856,1722132650647,-1413.212,0.00014328,2]
[333447857,1722132650657,-150.112233,0.000144,2]
[333447858,1722132650666,-324.802284,0.000145,5]
[333447859,1722132650675,-506.06107003,0.0001452,2]
[333447860,1722132650685,-500.0,0.0001452,2]
[333447861,1722132650695,-157.89768465,0.0001452,2]
[333447862,1722132650704,-500.0,0.0001452,2]
[333447863,1722132650714,-500.0,0.0001452,2]
[333447864,1722132650723,-500.0,0.0001452,2]
[333447865,1722132650733,-293.70072406,0.0001452,2]
[333447866,1722132650743,-503.85120094,0.0001452,2]
[333447867,1722132650753,-173.49769609,0.0001452,2]
[333447868,1722132650762,-500.0,0.0001452,2]
[333447869,1722132650772,-500.0,0.0001452,2]
[333447870,1722132650782,-500.0,0.0001452,2]
[333447871,1722132650793,-500.0,0.0001452,2]
[333447872,1722132650805,-500.0,0.0001452,2]
[333447873,1722132650815,-500.0,0.0001452,2]
[333447874,1722132650825,-500.0,0.0001452,2]
[333447875,1722132650834,-506.70427655,0.0001452,2]
[333447876,1722132650845,-500.0,0.0001452,2]
[333447877,1722132650854,-500.0,0.0001452,2]
[333447878,1722132650863,-500.0,0.0001452,2]
[333447879,1722132650874,-500.0,0.0001452,2]
[333447880,1722132650884,-500.0,0.0001452,2]
[333447881,1722132650894,-500.0,0.0001452,2]
[333447882,1722132650903,-430.56432866,0.0001452,2]
[333447883,1722132650912,-500.0,0.0001452,2]
[333447884,1722132650922,-505.4521961,0.0001452,2]
[333447885,1722132650931,-456.46772264,0.0001452,2]
[333447886,1722132650941,-500.0,0.0001452,2]
[333447887,1722132650952,-500.0,0.0001452,2]
[333447888,1722132650962,-500.0,0.0001452,2]
[333447889,1722132650972,-500.0,0.0001452,2]
[333447890,1722132650982,-500.0,0.0001452,2]
[333447891,1722132650991,-183.4021914,0.0001452,2]
[333447892,1722132651390,-501.09450704,0.00013698,2]
[333447893,1722132651401,-506.98828457,0.00013972,2]
[333447894,1722132651410,-316.5978086,0.0001452,2]
[333447895,1722132651420,-500.0,0.0001452,2]
[333447896,1722132651430,-500.0,0.0001452,2]
[333447897,1722132651440,-500.0,0.0001452,2]
[333447898,1722132651450,-500.0,0.0001452,2]
[333447899,1722132651459,-243.84195048,0.0001452,2]
[333447900,1722132651469,-500.0,0.0001452,2]
[333447901,1722132651480,-500.0,0.0001452,2]
[333447902,1722132651490,-500.0,0.0001452,2]
[333447903,1722132651500,-500.0,0.0001452,2]
[333447904,1722132651512,-794.78,0.0001452,2]
[333447905,1722132651522,-767.42,0.0001452,2]
[333447906,1722132651532,-500.0,0.0001452,2]
[333447907,1722132651542,-506.19298648,0.0001452,2]
[333447908,1722132651551,-500.0,0.0001452,2]
[333447909,1722132651561,-500.0,0.0001452,2]
[333447910,1722132651571,-500.0,0.0001452,2]
[333447911,1722132651581,-2641.6,0.0001452,2]
[333447912,1722132651590,-500.0,0.0001452,2]
[333447913,1722132651600,-508.73150349,0.0001452,2]
[333447914,1722132651610,-1199.81,0.0001452,2]
[333447915,1722132651621,-500.0,0.0001452,2]
[333447916,1722132651631,-500.0,0.0001452,2]
[333447917,1722132651642,-500.0,0.0001452,2]
[333447918,1722132651654,-500.0,0.0001452,2]
[333447919,1722132651665,-508.06675863,0.0001452,2]
[333447920,1722132651676,-505.76611024,0.0001452,2]
[333447921,1722132651688,-500.0,0.0001452,2]
[333447922,1722132651697,-506.54902966,0.0001452,2]
[333447923,1722132651706,-540.83,0.0001452,2]
[333447924,1722132651715,-500.0,0.0001452,2]
[333447925,1722132651725,-505.8724465,0.0001452,2]
[333447926,1722132651735,-500.0,0.0001452,2]
[333447927,1722132651746,-500.0,0.0001452,2]
[333447928,1722132651758,-500.0,0.0001452,2]
[333447929,1722132651769,-500.0,0.0001452,2]
[333447930,1722132651778,-500.0,0.0001452,2]
[333447931,1722132651789,-504.92164432,0.0001452,2]
[333447932,1722132651803,-632.55764043,0.0001452,2]
[333447933,1722132651812,-500.0,0.0001452,2]
[333447934,1722132651822,-504.19977824,0.0001452,2]
[333447935,1722132651832,-500.0,0.0001452,2]
[333447936,1722132651843,-500.0,0.0001452,2]
[333447937,1722132651853,-500.0,0.0001452,2]
[333447938,1722132651863,-271.06783923,0.0001452,2]
[333447939,1722132651873,-2442.88,0.0001452,2]
[333447940,1722132651883,-685.43,0.0001452,2]
[333447941,1722132651892,-507.58710656,0.0001452,2]
[333447942,1722132651902,-500.0,0.0001452,2]
[333447943,1722132651911,-500.0,0.0001452,2]
[333447944,1722132651921,-500.0,0.0001452,2]
[333447945,1722132651930,-500.0,0.0001452,2]
[333447946,1722132651939,-500.0,0.0001452,2]
[333447947,1722132651949,-500.0,0.0001452,2]
[333447948,1722132651958,-500.0,0.0001452,2]
[333447949,1722132651968,-508.86891953,0.0001452,2]
[333447950,1722132651977,-500.0,0.0001452,2]
[333447951,1722132651987,-500.0,0.0001452,2]
[333447952,1722132651997,-1285.03,0.0001452,2]
[333447953,1722132652007,-508.94574006,0.0001452,2]
[333447954,1722132652017,-500.0,0.0001452,2]
[333447955,1722132652027,-4.22922036,0.0001452,2]
[333447956,1722132652310,469.6772008,9.999e-05,2]
[333447957,1722132661486,218.55121616,0.00012,2]
[333447959,1722132737820,213.28,0.00010959,2]
[333447972,1722133437955,167.48122844,0.00022,120]
[333447973,1722133447280,159.87280211,0.00023,120]
[333447974,1722133628159,-159.241809,9.885e-05,2]
[333447975,1722133628183,-159.241809,9.932e-05,2]
[333447976,1722133628207,-159.241809,9.979e-05,2]
[333447977,1722133628230,-300.0,9.998e-05,2]
[333447978,1722133628251,-262.5995846,9.998e-05,2]
[333447979,1722133648127,-37.4004154,9.998e-05,2]
[333447980,1722133648152,-244.70182161,9.999e-05,2]
[333447981,1722133648175,-193.45274531,9.999e-05,2]
[333447982,1722133687893,-300.0,9.998e-05,2]
[333447983,1722133687929,-585.74480831,9.999e-05,2]
[333447984,1722133687964,-247.34502499,9.999e-05,2]
[333447985,1722133687998,-267.09636836,9.999e-05,2]
[333447986,1722133688034,-600.4958747,9.999e-05,2]
[333447987,1722133688070,-542.75544612,9.999e-05,2]
[333447988,1722133688107,-664.72874221,9.999e-05,2]
[333447989,1722133688143,-154.66746495,9.999e-05,2]
[333447990,1722133688322,-459.37749334,9.999e-05,2]
[333447991,1722133688357,-160.06926533,9.999e-05,2]
[333447992,1722133688392,-806.60743322,9.999e-05,2]
[333447993,1722133688428,-404.51278902,9.999e-05,2]
[333447994,1722133688463,-288.35895155,9.999e-05,2]
[333447995,1722133688499,-154.91018214,9.999e-05,2]
[333447996,1722133688537,-211.97178907,9.999e-05,2]
[333447997,1722133688571,-248.93707755,9.999e-05,2]
[333447998,1722133688605,-154.66746495,9.999e-05,2]
[333447999,1722133688640,-204.51207237,9.999e-05,2]
[333448000,1722133688675,-727.08965911,9.999e-05,2]
[333448001,1722133688710,-154.66746495,9.999e-05,2]
[333448002,1722133688745,-188.12148987,9.999e-05,2]
[333448003,1722133688783,-154.93735622,9.999e-05,2]
[333448004,1722133688818,-201.35578271,9.999e-05,2]
[333448005,1722133688853,-794.02048447,9.999e-05,2]
[333448006,1722133688887,-403.4994651,9.999e-05,2]
[333448007,1722133688921,-154.66746495,9.999e-05,2]
[333448008,1722133688955,-208.64474095,9.999e-05,2]
[333448009,1722133688989,-341.84161605,9.999e-05,2]
[333448010,1722133689023,-180.37071684,9.999e-05,2]
[333448011,1722133689057,-813.06577842,9.999e-05,2]
[333448012,1722133689094,-154.66746495,9.999e-05,2]
[333448013,1722133689128,-319.53564374,9.999e-05,2]
[333448014,1722133689163,-240.65823686,9.999e-05,2]
[333448015,1722133689197,-154.66746495,9.999e-05,2]
[333448016,1722133689232,-287.60472243,0.0001,2]
[333448017,1722133750136,-159.241809,0.00010025,2]
[333448018,1722133750159,-159.241809,0.00010072,2]
[333448019,1722133750184,-159.241809,0.00010119,2]
[333448020,1722133750206,-159.241809,0.00010166,2]
[333448021,1722133750239,-300.0,0.00010189,2]
[333448022,1722133750262,-10065.8397686,0.0001019,2]
[333448023,1722133750287,-159.241809,0.00010213,2]
[333448024,1722133750311,-159.241809,0.0001026,2]
[333448025,1722133750335,-159.241809,0.00010306,2]
[333448026,1722133750360,-159.241809,0.00010353,2]
[333448027,1722133750383,-1796.3202359,0.00010375,2]
[333448028,1722133750407,-159.241809,0.000104,2]
[333448029,1722133750429,-369.98,0.00010959,2]
[333448030,1722133750621,-420.0,0.00011208,2]
[333448031,1722133750643,-24900.0,0.00011534,2]
[333448032,1722133750663,-155.50527536,0.00012121,2]
[333448033,1722133750683,-249.21958783,0.00012121,2]
[333448034,1722133750704,-244.70182161,0.00012121,2]
[333448035,1722133750723,-154.66746495,0.00012121,2]
[333448036,1722133750743,-333.55988557,0.00012121,2]
[333448037,1722133750764,-188.60235743,0.00012121,2]
[333448038,1722133750784,-813.06577842,0.00012121,2]
[333448039,1722133750804,-154.66746495,0.00012121,2]
[333448040,1722133750826,-240.65823686,0.00012121,2]
[333448041,1722133750846,-727.08965911,0.00012121,2]
[333448042,1722133750866,-180.37071684,0.00012121,2]
[333448043,1722133750887,-322.45540982,0.00012121,2]
[333448044,1722133750907,-794.02048447,0.00012121,2]
[333448045,1722133750931,-208.64474095,0.00012121,2]
[333448046,1722133750952,-201.35578271,0.00012121,2]
[333448047,1722133750974,-404.01255801,0.00012121,2]
[333448048,1722133750995,-341.84161605,0.00012121,2]
[333448049,1722133751016,-201.35578271,0.00012121,2]
[333448050,1722133751039,-459.37749334,0.00012121,2]
[333448051,1722133751062,-155.08922694,0.00012121,2]
[333448052,1722133751082,-160.22528916,0.00012121,2]
[333448053,1722133751110,-155.07642353,0.00012121,2]
[333448054,1722133751131,-154.66746495,0.00012121,2]
[333448055,1722133751152,-205.27920889,0.00012121,2]
[333448056,1722133751173,-180.37071684,0.00012121,2]
[333448057,1722133751213,154.66746495,9.999e-05,2]
[333448058,1722133752011,308.32,0.00010959,2]
[333448059,1722133755095,-539.66,0.00012329,2]
[333448060,1722133762516,256.93,0.00010959,2]
[333448061,1722133763850,287.60472243,0.00012121,2]
[333448062,1722133764250,369.62562512,0.00012121,2]
[333448063,1722133767105,-438.86474767,0.00012121,2]
[333448064,1722133767132,-29.05648874,0.00012329,2]
[333448065,1722133769174,-284.38383363,0.00012121,2]
[333448068,1722133811311,287.60472243,0.0001,2]
[333448070,1722133819499,526.22147682,9.999e-05,2]
[333448071,1722133819536,16.5339693,9.999e-05,2]
[333448072,1722133824686,459.37749334,9.999e-05,2]
[333448073,1722133831099,254.27897029,9.999e-05,2]
[333448136,1722133834022,600.4958747,9.999e-05,2]
[333448137,1722133835833,288.35895155,9.999e-05,2]
[333448341,1722133840080,-214.11,0.00010959,2]
[333448343,1722133840091,-178.43,0.00010959,2]
[333448345,1722133840100,-892.16,0.00010959,2]
[333448347,1722133840110,-12702.07706184,0.00012509,2]
[333448368,1722133840321,-12197.92293816,0.00012509,2]
[333448370,1722133840331,-300.0,0.00013282,2]
[333448372,1722133840343,-346.13871728,0.00013283,2]
[333448374,1722133840353,-244.70182161,0.00013283,2]
[333448376,1722133840363,-405.0185737,0.00013283,2]
[333448378,1722133840374,-387.98828502,0.00013283,2]
[333448380,1722133840385,-344.3115031,0.00013283,2]
[333448382,1722133840394,-221.42852601,0.00013283,2]
[333448384,1722133840404,-264.09516862,0.00013283,2]
[333448386,1722133840414,-813.06577842,0.00013283,2]
[333448388,1722133840424,-163.555693,0.00013425,2]
[333448390,1722133840433,-321.32937026,0.00013598,2]
[333448392,1722133840443,-150.112233,0.000136,2]
[333448394,1722133840453,-21121.54190611,0.00013686,2]
[333448396,1722133840465,-2278.34491214,0.00013686,2]
[333448398,1722133840475,-53294.67894317,0.00013688,2]
[333448421,1722133843371,-33.55225528,0.00013688,2]
[333448432,1722133847255,813.06577842,9.999e-05,2]
[333448440,1722133848557,244.70182161,9.999e-05,2]
[333448446,1722133912802,823.18714079,9.999e-05,2]
[333448447,1722133912838,244.73898168,9.999e-05,2]
[333448448,1722133913577,8056.36200749,9.999e-05,2]
[333448449,1722133914840,402.08578826,9.999e-05,2]
[333448450,1722133915369,674.46233613,9.999e-05,2]
[333448451,1722133922291,179.98818922,9.999e-05,2]
[333448452,1722133925271,959.77568625,9.999e-05,2]
[333448453,1722133925961,242.07337987,9.999e-05,2]
[333448454,1722133938680,460.3867482,9.999e-05,2]
[333448455,1722133953735,288.65162546,9.999e-05,2]
[333448456,1722133958520,244.70182161,9.999e-05,2]
[333448457,1722133992529,292.08838895,0.0001,2]
[333448458,1722134027590,376.5103825,9.999e-05,2]
[333448459,1722134058180,244.70182161,9.999e-05,2]
[333448461,1722134062986,200.0,0.0001,2]
[333448462,1722134064597,530.06400785,9.999e-05,2]
[333448463,1722134112693,155.38763152,0.0001,2]
[333448464,1722134117148,4716.02352738,9.999e-05,2]
[333448465,1722134132439,200.0,0.0001,2]
[333448466,1722134132649,275.99688424,0.0001,2]
[333448467,1722134137983,850.80912465,9.999e-05,2]
[333448468,1722134139090,1629.64506442,9.999e-05,2]
[333448469,1722134145802,235.6378508,9.999e-05,2]
[333448470,1722134159750,293.10560774,9.999e-05,2]
[333448471,1722134165313,244.70182161,9.999e-05,2]
[333448473,1722134192429,200.0,0.0001,2]
[333448476,1722134247800,154.98525593,0.0001,2]
[333448477,1722134261187,244.70182161,9.999e-05,2]
[333448479,1722134263119,200.0,0.0001,2]
[333448480,1722134323305,200.0,0.0001,2]
[333448481,1722134370687,244.70182161,9.999e-05,2]
[333448483,1722134389296,264.04350998,0.0001,2]
[333448484,1722134392922,261.17911798,0.0001,2]
[333448485,1722134440693,255.03462826,9.999e-05,2]
[333448487,1722134632857,1000.0,0.00023349,120]
[333448488,1722134826134,-348.07,0.00010959,2]
[333448489,1722134826157,-473.66525097,0.00012185,2]
[333448490,1722134831343,-253.93707705,0.00012185,2]
[333448491,1722134845155,-267.72815936,0.00010959,2]
[333448492,1722134945133,-22.33184064,0.00010959,2]
[333448493,1722134945157,-241.71,0.00010959,2]
[333448494,1722134945181,-201.43,0.00010959,2]
[333448495,1722134945205,-167.86,0.00010959,2]
[333448496,1722134945229,-839.3,0.00010959,2]
[333448497,1722134945253,-300.0,0.00012184,2]
[333448498,1722134945275,-1130.44955036,0.00012185,2]
[333448499,1722134947121,-6101.557548,0.00012185,2]
[333448544,1722135032594,-72.29878602,0.00012185,2]
[333448546,1722135032605,-4842.36337778,0.00012185,2]
[333448548,1722135032617,-2003.61251747,0.00012185,2]
[333448550,1722135032626,-150.85847389,0.00013219,2]
[333448552,1722135032636,-761.59520164,0.00013326,2]
[333448555,1722135032647,-258.18004786,0.00013326,2]
[333448783,1722135038669,-4289.02787197,0.00013326,2]